bitfinex/quotes_SOLUSD_20250806
["timestamp","ask_amount","ask_price","bid_price","bid_amount"]
[1754521467340,52.36155134,168.33,168.32,0.2]
[1754521467674,57.30641852,168.33,168.32,0.2]
[1754521469243,14.86641852,168.33,168.32,0.2]
[1754521469551,57.28641852,168.33,168.32,0.2]
[1754521470135,56.60641852,168.33,168.32,0.2]
[1754521470453,51.31662975,168.33,168.32,0.2]
[1754521470662,56.60641852,168.33,168.32,0.2]
[1754521471370,57.28641852,168.33,168.32,0.2]
[1754521471552,57.28695329,168.33,168.32,0.2]
[1754521472370,52.34408411,168.33,168.32,0.2]
[1754521472545,51.66408411,168.33,168.32,0.2]
[1754521473269,52.34408411,168.33,168.32,0.2]
[1754521473568,51.66408411,168.33,168.32,0.2]
[1754521473947,52.34408411,168.33,168.32,0.2]
[1754521476873,51.66408411,168.33,168.32,0.2]
[1754521477444,56.61263026,168.33,168.3,0.06]
[1754521477746,3.95429534,168.32,168.3,0.75]
[1754521477963,46.29429534,168.31,168.3,0.75]
[1754521481462,51.24284149,168.31,168.3,0.75]
[1754521484254,46.29429534,168.31,168.3,0.75]
[1754521485262,51.263221,168.31,168.3,0.75]
[1754521486380,46.29429534,168.31,168.3,0.75]
[1754521487383,46.29429534,168.31,168.26,5.94318316]
[1754521487682,8.93535539,168.3,168.27,15.39053871]
[1754521487885,4.98106005,168.31,168.29,3.39368219]
[1754521488182,3.98515562,168.3,168.29,3.39368219]
[1754521488362,3.98515562,168.3,168.28,3.45368219]
[1754521488563,3.98515562,168.29,168.28,3.73800533]
[1754521489154,3.98515562,168.29,168.28,9.68048215]
[1754521489594,3.98515562,168.29,168.28,10.36048215]
[1754521499788,3.98515562,168.29,168.28,6.00247682]
[1754521500469,3.98515562,168.29,168.28,6.68247682]
[1754521502899,3.98515562,168.29,168.28,6.00247682]
[1754521503804,4.65515562,168.29,168.28,0.06]
[1754521503970,55.10989786,168.29,168.28,0.06]
[1754521507391,50.12883781,168.29,168.28,0.06]
[1754521507985,55.10989786,168.29,168.28,0.06]
[1754521512895,55.10989786,168.29,168.26,0.06]
[1754521512896,50.12883781,168.29,168.26,0.06]
[1754521513200,4.65515562,168.28,168.26,0.06]
[1754521513494,46.00515562,168.27,168.26,0.06]
[1754521513698,191.90515562,168.27,168.26,0.06]
[1754521514011,192.57515562,168.27,168.26,0.06]
[1754521514298,50.06883781,168.27,168.26,0.06]
[1754521515778,55.07070104,168.27,168.26,0.06]
[1754521519325,200.97070104,168.27,168.26,0.06]
[1754521521116,195.96883781,168.27,168.26,0.06]
[1754521522714,200.97070104,168.27,168.26,0.06]
[1754521524414,55.07070104,168.27,168.26,0.06]
[1754521525616,50.06883781,168.27,168.26,0.06]
[1754521528226,46.67515562,168.27,168.26,0.06]
[1754521528406,50.06883781,168.27,168.26,0.06]
[1754521528608,7.37883781,168.27,168.26,0.78]
[1754521528816,49.29883781,168.27,168.26,0.78]
[1754521529313,49.29883781,168.27,168.26,0.06]
[1754521530022,49.93883781,168.27,168.26,0.06]
[1754521530821,8.03883781,168.27,168.26,0.06]
[1754521531017,49.93883781,168.27,168.26,0.06]
[1754521532620,8.03883781,168.27,168.26,0.06]
[1754521532796,49.91883781,168.27,168.26,0.06]
[1754521533315,8.03883781,168.27,168.26,0.06]
[1754521533516,49.91883781,168.27,168.26,0.06]
[1754521534328,8.03883781,168.27,168.26,0.06]
[1754521534527,49.89883781,168.27,168.26,0.06]
[1754521535429,46.50515562,168.27,168.26,0.06]
[1754521535927,49.89883781,168.27,168.26,0.06]
[1754521536629,8.03883781,168.27,168.26,0.06]
[1754521536934,49.89883781,168.27,168.26,0.06]
[1754521540134,49.87883781,168.27,168.26,0.06]
[1754521540927,49.21883781,168.27,168.26,0.06]
[1754521541121,49.19883781,168.27,168.26,0.06]
[1754521542233,50.80701885,168.27,168.26,0.06]
[1754521543336,3.98515562,168.27,168.26,4.17368219]
[1754521543510,0.03,168.28,168.27,0.28432314]
[1754521543706,3.30774389,168.28,168.27,19.5042209]
[1754521543932,3.30774389,168.31,168.27,19.5042209]
[1754521544138,41.87,168.32,168.29,3.39368219]
[1754521544513,41.87,168.32,168.3,0.72]
[1754521545151,41.87,168.32,168.3,6.66168152]
[1754521546056,41.87,168.32,168.3,10.05536371]
[1754521546344,41.87,168.32,168.31,0.72]
[1754521546541,41.87,168.32,168.31,4.11368219]
[1754521546736,0.03,168.32,168.31,4.11368219]
[1754521547122,0.03,168.32,168.31,10.05509981]
[1754521551623,0.03,168.32,168.31,9.33509981]
[1754521553652,0.03,168.32,168.31,5.94141762]
[1754521553858,0.03,168.32,168.31,9.33509981]
[1754521554445,42.44,168.32,168.28,9.33615901]
[1754521554633,0.65,168.31,168.28,9.33615901]
[1754521554824,41.79,168.32,168.28,9.33615901]
[1754521555029,0.65,168.3,168.28,9.33615901]
[1754521555229,0.65,168.3,168.28,9.39615901]
[1754521556655,0.65,168.3,168.29,9.3358059]
[1754521557039,3.98843522,168.31,168.29,9.3358059]
[1754521557755,42.44,168.32,168.29,9.3358059]
[1754521557957,3.98742363,168.31,168.29,9.3358059]
[1754521558158,3.9871106,168.31,168.29,9.3358059]
[1754521558450,4.6371106,168.31,168.29,9.3358059]
[1754521559539,4.6371106,168.31,168.28,0.75]
[1754521559742,4.6371106,168.3,168.28,6.00246653]
[1754521559927,0.65,168.3,168.28,9.39614872]
[1754521560255,4.6371106,168.3,168.28,9.39614872]
[1754521560642,3.9871106,168.3,168.29,3.39368219]
[1754521562259,4.6371106,168.3,168.29,3.39368219]
[1754521562556,3.9871106,168.3,168.29,3.39368219]
[1754521562753,3.9871106,168.3,168.28,11.3041391]
[1754521563167,4.6371106,168.3,168.28,11.3041391]
[1754521563356,45.7071106,168.3,168.28,0.06]
[1754521563540,0.65,168.29,168.28,0.06]
[1754521564163,42.37,168.3,168.28,0.06]
[1754521567962,3.98404347,168.29,168.28,0.06]
[1754521568363,4.63404347,168.29,168.28,0.06]
[1754521569138,145.9,168.31,168.28,0.75]
[1754521569346,45.68558537,168.3,168.28,6.05167257]
[1754521569545,41.7,168.3,168.28,5.36167257]
[1754521569960,41.7,168.3,168.29,0.69]
[1754521570146,3.98578348,168.3,168.29,5.99167257]
[1754521570345,187.58,168.31,168.29,5.99167257]
[1754521570539,145.9,168.31,168.29,5.99167257]
[1754521571871,145.9,168.31,168.3,5.94177064]
[1754521572039,149.88638546,168.31,168.3,5.94177064]
[1754521573872,3.98638546,168.31,168.3,11.93344321]
[1754521574779,3.98638546,168.31,168.3,11.24344321]
[1754521576062,0.03,168.32,168.3,11.93344321]
[1754521576268,0.03,168.32,168.31,5.99167257]
[1754521576476,4.01817074,168.32,168.31,5.30167257]
[1754521577671,4.01817074,168.32,168.31,11.24309019]
[1754521584772,4.01817074,168.32,168.31,9.33349702]
[1754521588283,4.01817074,168.32,168.31,3.3920794]
[1754521589367,4.70817074,168.32,168.31,3.3920794]
[1754521590791,4.70817074,168.32,168.31,9.33349702]
[1754521594093,4.70817074,168.32,168.29,5.94183214]
[1754521594266,3.98817074,168.31,168.29,5.94183214]
[1754521594458,0.03,168.32,168.3,3.3920794]
[1754521594657,3.99904911,168.31,168.3,3.3920794]
[1754521595092,4.68904911,168.31,168.3,3.3920794]
[1754521598876,4.71904911,168.31,168.3,3.3920794]
[1754521600593,4.71904911,168.31,168.3,9.33385004]
[1754521601795,4.02904911,168.31,168.3,9.33385004]
[1754521602595,4.02983843,168.31,168.3,9.33385004]
[1754521603179,4.02983843,168.31,168.3,6.63177064]
[1754521603377,4.02983843,168.31,168.3,10.02385004]
[1754521604271,4.02983843,168.31,168.3,10.30817318]
[1754521604470,4.02983843,168.31,168.3,38.98270635]
[1754521604900,0.03,168.31,168.3,38.98270635]
[1754521605281,0.03,168.31,168.3,25.41438875]
[1754521607801,4.02857094,168.31,168.3,25.41438875]
[1754521609411,0.03,168.31,168.3,25.41438875]
[1754521614489,4.03055701,168.31,168.3,25.41438875]
[1754521615505,4.03055701,168.31,168.3,24.72438875]
[1754521616286,4.03055701,168.31,168.3,21.33230935]
[1754521616482,4.03055701,168.31,168.3,24.72438875]
[1754521617078,4.03055701,168.31,168.3,21.99230935]
[1754521617298,4.03055701,168.31,168.3,25.38438875]
[1754521618722,0.03,168.32,168.31,15.39053871]
[1754521618885,0.03,168.33,168.31,44.78261811]
[1754521619078,0.03,168.33,168.32,60.92261811]
[1754521619287,0.03,168.35,168.33,15.39053871]
[1754521619592,0.03,168.35,168.34,18.49829497]
[1754521619798,0.03,168.35,168.34,19.15829497]
[1754521620487,0.03,168.35,168.34,66.57865376]
[1754521622003,0.03,168.35,168.34,66.8629769]
[1754521624024,0.03,168.35,168.34,70.8584599]
[1754521628321,0.03,168.35,168.34,70.1984599]
[1754521631130,0.03,168.35,168.34,66.2029769]
[1754521633341,0.75,168.35,168.34,9.33243819]
[1754521635433,0.75,168.35,168.34,5.94035879]
[1754521635631,0.75,168.35,168.34,9.33243819]
[1754521640026,0.75,168.35,168.32,0.28432314]
[1754521640329,0.75,168.35,168.32,45.15640254]
[1754521640544,0.75,168.35,168.32,3.3920794]
[1754521640751,3.98769836,168.34,168.31,51.09782016]
[1754521640953,0.68,168.33,168.31,51.09782016]
[1754521641155,0.68,168.33,168.32,3.3920794]
[1754521641959,0.68,168.33,168.32,9.33314403]
[1754521648350,4.67228949,168.33,168.32,9.33314403]
[1754521655965,3.99228949,168.33,168.32,9.33314403]
[1754521660474,0.68,168.34,168.32,9.33314403]
[1754521662173,0.68,168.34,168.32,5.94106463]
[1754521662368,3.99564729,168.33,168.32,9.33314403]
[1754521668562,3.99564729,168.33,168.32,5.94106463]
[1754521668764,4.67564729,168.33,168.32,9.33314403]
[1754521670378,3.99564729,168.33,168.32,9.33314403]
[1754521680502,0.03,168.35,168.33,0.28432314]
[1754521680666,4.00475689,168.34,168.33,41.74432314]
[1754521680866,4.00475689,168.34,168.33,45.13640254]
[1754521682296,4.00475689,168.34,168.33,51.07711423]
[1754521683098,4.00475689,168.34,168.33,51.79711423]
[1754521683483,4.00475689,168.34,168.33,51.07711423]
[1754521684194,0.03,168.35,168.33,51.07711423]
[1754521684399,0.69,168.35,168.34,9.33243819]
[1754521684600,4.69257451,168.35,168.34,9.33243819]
[1754521689104,0.03,168.37,168.35,15.10621557]
[1754521689286,0.03,168.37,168.36,45.85640254]
[1754521690082,0.03,168.37,168.36,45.13640254]
[1754521691285,0.03,168.37,168.36,51.07605566]
[1754521692613,0.03,168.37,168.36,68.92416866]
[1754521694509,0.03,168.37,168.36,84.75038423]
[1754521702219,3.99227963,168.41,168.39,15.10621557]
[1754521702395,145.9,168.42,168.41,0.28432314]
[1754521702594,0.74,168.45,168.41,19.43261811]
[1754521702906,3.99271157,168.44,168.43,3.3920794]
[1754521703116,0.74,168.45,168.43,3.3920794]
[1754521703311,0.71,168.44,168.43,3.3920794]
[1754521704311,0.71,168.44,168.43,9.32926398]
[1754521708114,0.74,168.44,168.43,9.32926398]
[1754521714935,0.74,168.44,168.43,5.93718458]
[1754521715117,0.74,168.44,168.43,9.32926398]
[1754521715433,0.74,168.44,168.38,26.65]
[1754521715609,0.74,168.44,168.4,3.3920794]
[1754521716731,0.74,168.44,168.4,9.33008986]
[1754521717633,0.74,168.44,168.41,3.3920794]
[1754521718337,4.72498669,168.44,168.41,3.3920794]
[1754521718543,0.71,168.43,168.41,3.3920794]
[1754521719321,0.71,168.43,168.41,9.3298981]
[1754521722139,4.69965644,168.43,168.41,9.3298981]
[1754521726333,0.71,168.43,168.41,9.3298981]
[1754521727642,0.03,168.44,168.42,3.3920794]
[1754521727816,3.99255578,168.43,168.42,6.87181586]
[1754521728023,0.03,168.44,168.42,10.26389526]
[1754521728222,0.03,168.44,168.43,3.3920794]
[1754521728518,4.02338139,168.44,168.43,4.0420794]
[1754521729038,4.02338139,168.44,168.43,9.97926398]
[1754521730223,4.02338139,168.44,168.43,9.32926398]
[1754521738649,4.74338139,168.44,168.43,5.93718458]
[1754521738854,4.74338139,168.44,168.43,9.32926398]
[1754521739234,4.02338139,168.44,168.43,9.32926398]
[1754521740962,4.02338139,168.44,168.43,9.32926398]
[1754521742345,4.74338139,168.44,168.43,9.32926398]
[1754521742549,4.74998917,168.44,168.43,9.32926398]
[1754521742863,4.74998917,168.44,168.43,5.93718458]
[1754521743067,4.74998917,168.44,168.43,9.32926398]
[1754521744965,4.02998917,168.44,168.43,9.32926398]
[1754521745363,4.02998917,168.44,168.43,5.93718458]
[1754521745579,4.02998917,168.44,168.43,9.32926398]
[1754521746472,4.02998917,168.44,168.43,25.42980269]
[1754521746647,0.03,168.44,168.43,25.42980269]
[1754521746853,1e-08,168.44,168.43,84.66836369]
[1754521767293,1e-08,168.44,168.43,83.95836369]
[1754521767796,1e-08,168.44,168.43,84.66836369]
[1754521771216,1e-08,168.44,168.43,83.95836369]
[1754521772615,1e-08,168.44,168.43,84.01836369]
[1754521773913,1e-08,168.44,168.43,84.72836369]
[1754521786326,1e-08,168.44,168.43,84.01836369]
[1754521792628,0.66000001,168.44,168.43,42.33404055]
[1754521792831,0.66000001,168.44,168.43,83.67404055]
[1754521793032,0.66000001,168.44,168.43,83.95836369]
[1754521805549,0.66000001,168.44,168.43,80.56628429]
[1754521805763,0.66000001,168.44,168.43,83.95836369]
[1754521807250,4.66462381,168.44,168.43,74.34477657]
[1754521807457,4.66462381,168.44,168.43,80.56628429]
[1754521807643,4.66462381,168.44,168.43,66.11980269]
[1754521808545,0.66000001,168.44,168.43,66.11980269]
[1754521809586,4.66370123,168.44,168.43,66.11980269]
[1754521812193,0.66000001,168.44,168.43,66.11980269]
[1754521820301,0.66000001,168.44,168.43,62.72772329]
[1754521820504,0.66000001,168.44,168.43,66.11980269]
[1754521821013,0.66000001,168.44,168.43,62.72772329]
[1754521821183,0.66000001,168.44,168.43,66.11980269]
[1754521822812,0.66000001,168.44,168.43,62.72772329]
[1754521823106,0.66000001,168.44,168.43,66.11980269]
[1754521826813,0.66000001,168.44,168.43,62.72772329]
[1754521830123,0.66000001,168.44,168.43,66.11980269]
[1754521834413,4.00292535,168.44,168.43,66.11980269]
[1754521835032,4.00292535,168.44,168.43,62.72772329]
[1754521836388,4.00292535,168.44,168.43,66.11980269]
[1754521842595,4.00292535,168.44,168.43,62.72772329]
[1754521847208,1e-08,168.44,168.43,62.72772329]
[1754521851436,1e-08,168.44,168.43,66.11980269]
[1754521852140,4.00542059,168.44,168.43,66.11980269]
[1754521853434,4.67542059,168.44,168.43,66.11980269]
[1754521856344,4.17542059,168.44,168.43,66.11980269]
[1754521858741,3.50542059,168.44,168.43,66.11980269]
[1754521858915,3.53542059,168.44,168.43,66.11980269]
[1754521861049,3.03542059,168.44,168.43,66.11980269]
[1754521862121,3.70542059,168.44,168.43,66.11980269]
[1754521862627,3.70542059,168.44,168.43,51.01358712]
[1754521867641,3.03542059,168.44,168.43,51.01358712]
[1754521869835,3.70542059,168.44,168.43,51.01358712]
[1754521870772,3.03542059,168.44,168.43,51.01358712]
[1754521871370,3.03542059,168.44,168.43,47.62150772]
[1754521871575,3.03542059,168.44,168.43,54.04900712]
[1754521872739,3.03542059,168.44,168.43,47.62150772]
[1754521873138,3.70542059,168.44,168.43,47.62150772]
[1754521875541,3.70542059,168.44,168.43,51.01358712]
[1754521875885,3.70542059,168.44,168.43,47.62150772]
[1754521876070,3.70542059,168.44,168.43,51.01358712]
[1754521877073,3.70542059,168.44,168.43,47.62150772]
[1754521877995,3.03542059,168.44,168.43,51.01358712]
[1754521878303,3.03542059,168.44,168.43,54.71900712]
[1754521887090,3.03542059,168.44,168.43,51.32692772]
[1754521887291,3.74542059,168.44,168.43,47.62150772]
[1754521887818,3.74542059,168.44,168.43,51.01358712]
[1754521889510,3.74542059,168.44,168.43,54.75900812]
[1754521891110,3.74542059,168.44,168.43,51.01358712]
[1754521894423,3.74542059,168.44,168.43,54.75900812]
[1754521894631,3.03542059,168.44,168.43,54.75900812]
[1754521901016,3.03542059,168.44,168.43,51.01358712]
[1754521901217,3.74542059,168.44,168.43,54.04900712]
[1754521902401,3.03542059,168.44,168.43,54.04900712]
[1754521902936,3.74542059,168.44,168.43,54.04900712]
[1754521903838,3.74542059,168.44,168.43,51.01358712]
[1754521908435,4.74079646,168.44,168.43,51.36692872]
[1754521908618,4.03079646,168.44,168.43,51.01358712]
[1754521909120,4.03079646,168.44,168.43,55.75438312]
[1754521909325,4.72079646,168.44,168.43,51.01358712]
[1754521910044,4.72079646,168.44,168.43,47.62150772]
[1754521917124,4.72079646,168.44,168.43,5.99718458]
[1754521917323,4.72079646,168.44,168.43,0.06]
[1754521922242,4.72079646,168.44,168.43,3.4520794]
[1754521923268,4.72079646,168.44,168.43,0.06]
[1754521924367,4.72079646,168.44,168.43,3.4520794]
[1754521926269,4.72079646,168.44,168.43,9.38926398]
[1754521930575,4.72079646,168.44,168.43,0.06]
[1754521934589,4.71984323,168.44,168.43,0.06]
[1754521941092,0.72,168.44,168.43,0.06]
[1754521941295,4.71895809,168.44,168.43,0.06]
[1754521949784,4.71895809,168.44,168.43,9.38926398]
[1754521973048,4.71895809,168.44,168.43,0.06]
[1754521973343,1e-08,168.45,168.44,15.39053871]
[1754521973519,0.03,168.46,168.45,0.28432314]
[1754521973520,1e-08,168.46,168.45,0.28432314]
[1754521973718,1e-08,168.46,168.45,0.97432314]
[1754521973914,1e-08,168.46,168.45,4.36640254]
[1754521974146,1e-08,168.46,168.45,6.74445254]
[1754521975433,1e-08,168.46,168.45,12.6809322]
[1754521981854,0.1,168.49,168.45,42.62834693]
[1754521982037,0.1,168.49,168.48,3.67640254]
[1754521982231,0.1,168.49,168.48,44.87640254]
[1754521982429,0.1,168.49,168.48,47.25431254]
[1754521983547,0.1,168.49,168.48,53.18973514]
[1754521983852,0.1,168.49,168.48,68.98595071]
[1754521989753,0.1,168.49,168.48,68.29595071]
[1754521990070,0.1,168.49,168.48,68.27595071]
[1754521992666,0.1,168.49,168.48,65.89804071]
[1754521998445,0.79,168.49,168.48,65.89804071]
[1754522000171,0.1,168.49,168.48,65.89804071]
[1754522004263,0.79,168.49,168.48,65.89804071]
[1754522009206,0.1,168.49,168.48,65.89804071]
[1754522009583,0.1,168.49,168.48,66.54804071]
[1754522010402,0.1,168.49,168.48,65.89804071]
[1754522025237,0.03,168.51,168.48,92.54804071]
[1754522025617,0.03,168.51,168.5,18.49829497]
[1754522025934,0.03,168.51,168.5,59.63829497]
[1754522026317,4.03404447,168.51,168.5,65.57301307]
[1754522026898,4.72404447,168.51,168.5,9.3267975]
[1754522027101,4.72404447,168.51,168.5,50.4667975]
[1754522027829,4.72404447,168.51,168.5,47.0747181]
[1754522030133,4.72404447,168.51,168.5,50.4667975]
[1754522031531,4.72404447,168.51,168.5,50.5267975]
[1754522033139,4.72404447,168.51,168.5,9.3867975]
[1754522033546,4.72404447,168.51,168.5,5.9947181]
[1754522033730,4.72404447,168.51,168.5,9.3867975]
[1754522037361,4.72404447,168.51,168.5,0.06]
[1754522039751,8.11612387,168.51,168.5,0.06]
[1754522041668,14.05048978,168.51,168.5,0.06]
[1754522041948,22.59147968,168.51,168.47,0.06]
[1754522042149,8.39182318,168.48,168.47,0.06]
[1754522042337,7.39612387,168.48,168.47,0.06]
[1754522042537,8.07612387,168.48,168.47,0.06]
[1754522046253,4.68404447,168.48,168.47,0.06]
[1754522046459,8.07612387,168.48,168.47,0.06]
[1754522078709,14.01154647,168.48,168.47,0.06]
[1754522078916,19.01129025,168.48,168.47,0.06]
[1754522079626,14.01154647,168.48,168.47,0.06]
[1754522081445,14.01154647,168.48,168.45,0.06]
[1754522081737,3.3920794,168.46,168.45,0.06]
[1754522081896,7.39612387,168.46,168.45,0.06]
[1754522082097,8.05612387,168.46,168.45,0.06]
[1754522083133,13.99225114,168.46,168.45,0.06]
[1754522084208,18.98495534,168.46,168.45,0.06]
[1754522091535,13.99225114,168.46,168.45,0.06]
[1754522092920,18.98495534,168.46,168.45,0.06]
[1754522093344,18.98220124,168.46,168.45,0.06]
[1754522093516,13.98553759,168.46,168.45,0.06]
[1754522093715,18.98220124,168.46,168.45,0.06]
[1754522095439,10.59345819,168.46,168.45,0.06]
[1754522095623,8.04941032,168.46,168.45,0.06]
[1754522096647,4.65733092,168.46,168.45,0.06]
[1754522097744,3.99733092,168.46,168.45,0.06]
[1754522098523,3.99733092,168.46,168.45,0.78]
[1754522099343,3.99733092,168.46,168.45,0.06]
[1754522099534,8.99399457,168.46,168.45,0.06]
[1754522100041,9.65399457,168.46,168.45,0.06]
[1754522105846,50.77399457,168.46,168.45,0.06]
[1754522106146,50.11399457,168.46,168.45,0.06]
[1754522107346,8.99399457,168.46,168.45,0.06]
[1754522109330,50.11399457,168.46,168.45,0.06]
[1754522109851,8.99399457,168.46,168.45,0.06]
[1754522110026,50.11399457,168.46,168.45,0.06]
[1754522111028,50.77399457,168.46,168.45,0.06]
[1754522113259,3.99733092,168.46,168.45,0.78]
[1754522114227,3.99733092,168.46,168.45,0.06]
[1754522124849,4.68733092,168.46,168.45,0.06]
[1754522126363,8.07941032,168.46,168.45,0.06]
[1754522126672,8.07941032,168.46,168.43,0.06]
[1754522126861,50.80678959,168.45,168.43,0.06]
[1754522127059,7.38941032,168.44,168.43,0.06]
[1754522127237,8.07941032,168.44,168.43,0.06]
[1754522133676,8.07833545,168.44,168.43,0.06]
[1754522142874,3.99625605,168.44,168.43,0.06]
[1754522143170,3.99625605,168.44,168.43,0.77]
[1754522143755,3.99625605,168.44,168.43,0.06]
[1754522150660,3.99625605,168.44,168.43,4.1420794]
[1754522150861,46.14532007,168.49,168.43,4.1420794]
[1754522151163,46.14532007,168.49,168.44,4.0820794]
[1754522151164,3.99545612,168.48,168.44,4.0820794]
[1754522151365,3.99545612,168.47,168.45,0.69]
[1754522151564,3.99545612,168.46,168.45,0.69]
[1754522152280,3.99545612,168.46,168.45,4.0820794]
[1754522152488,3.99545612,168.46,168.45,10.01855906]
[1754522154970,41.15,168.49,168.45,9.32855906]
[1754522157283,3.99352869,168.48,168.45,9.32855906]
[1754522157593,149.89352869,168.47,168.45,9.32855906]
[1754522157888,3.99352869,168.46,168.45,9.32855906]
[1754522159286,145.9,168.47,168.45,9.32855906]
[1754522159467,145.9,168.47,168.46,3.3920794]
[1754522159782,149.89279985,168.47,168.46,3.3920794]
[1754522161478,149.89214937,168.47,168.46,9.32820667]
[1754522161702,0.03,168.48,168.46,9.32820667]
[1754522161880,0.03,168.48,168.47,3.3920794]
[1754522162059,4.02117337,168.48,168.47,3.3920794]
[1754522164196,4.02117337,168.48,168.47,9.32785431]
[1754522168996,4.02117337,168.48,168.47,3.3920794]
[1754522169984,4.02117337,168.48,168.47,9.32785431]
[1754522170192,4.02117337,168.48,168.47,3.3920794]
[1754522170593,4.02117337,168.48,168.46,9.32817967]
[1754522170797,3.99117337,168.47,168.46,9.32817967]
[1754522176515,3.99117337,168.47,168.46,3.3920794]
[1754522177494,3.99117337,168.47,168.46,9.32820667]
[1754522177806,3.99117337,168.47,168.46,5.93612727]
[1754522182616,3.98804699,168.47,168.46,5.93612727]
[1754522183198,3.98804699,168.47,168.46,3.3920794]
[1754522185011,3.98804699,168.47,168.46,9.32820667]
[1754522190628,3.98804699,168.47,168.46,3.3920794]
[1754522191744,3.98804699,168.47,168.46,9.32820667]
[1754522204530,0.03,168.48,168.46,9.32820667]
[1754522205119,4.00202537,168.47,168.46,9.32820667]
[1754522205718,4.00202537,168.47,168.46,5.93612727]
[1754522206039,4.00202537,168.47,168.45,0.06]
[1754522206222,4.00202537,168.46,168.45,0.06]
[1754522207812,149.90202537,168.46,168.45,0.06]
[1754522209846,190.98202537,168.46,168.45,0.06]
[1754522210427,199.37663648,168.46,168.45,0.06]
[1754522212142,26.0,168.44,168.43,0.06]
[1754522212451,74.47410477,168.44,168.43,0.06]
[1754522213119,79.4655574,168.44,168.43,0.06]
[1754522213740,74.47410477,168.44,168.43,0.06]
[1754522214331,85.39986447,168.44,168.43,0.06]
[1754522217419,90.26177112,168.44,168.43,0.06]
[1754522218144,85.27284352,168.44,168.43,0.06]
[1754522221149,80.41093687,168.44,168.43,0.06]
[1754522226361,85.39986447,168.44,168.43,0.06]
[1754522226541,80.41093687,168.44,168.43,0.06]
[1754522228640,81.08093687,168.44,168.43,0.06]
[1754522233059,83.46068487,168.44,168.43,0.06]
[1754522234262,88.44961247,168.44,168.43,0.06]
[1754522235162,103.84015118,168.44,168.43,0.06]
[1754522235950,112.38189561,168.44,168.43,0.06]
[1754522236868,97.0113569,168.44,168.43,0.06]
[1754522243073,96.3413569,168.44,168.43,0.06]
[1754522247873,97.0513569,168.44,168.43,0.06]
[1754522248175,92.0624293,168.44,168.41,0.06]
[1754522248468,3.3920794,168.42,168.41,0.06]
[1754522248665,48.49410477,168.42,168.41,0.06]
[1754522249562,54.43164187,168.42,168.41,0.06]
[1754522250768,59.41269341,168.42,168.41,0.06]
[1754522251885,60.12269341,168.42,168.41,0.06]
[1754522252446,81.14164187,168.42,168.41,0.06]
[1754522252752,69.6833123,168.42,168.41,0.06]
[1754522255172,26.0,168.39,168.37,0.75]
[1754522255378,48.49410477,168.38,168.37,0.75]
[1754522257762,48.49410477,168.38,168.37,0.06]
[1754522258658,55.14305238,168.38,168.37,0.06]
[1754522261261,55.13333322,168.38,168.37,0.06]
[1754522269270,60.12371598,168.38,168.37,0.06]
[1754522269782,15.10621557,168.36,168.35,0.06]
[1754522270082,85.51993529,168.36,168.35,0.06]
[1754522270284,86.20993529,168.36,168.35,0.06]
[1754522270583,88.59124129,168.36,168.35,0.06]
[1754522271472,87.88225578,168.36,168.35,0.06]
[1754522272866,0.28432314,168.34,168.33,0.06]
[1754522273067,56.10734738,168.34,168.33,0.06]
[1754522273265,62.93142919,168.34,168.33,0.06]
[1754522273469,62.22314935,168.34,168.33,0.06]
[1754522275376,67.1918785,168.34,168.33,0.06]
[1754522276870,82.01377093,168.34,168.33,0.06]
[1754522278798,77.93169153,168.34,168.33,0.06]
[1754522279095,81.32377093,168.34,168.33,0.06]
[1754522279597,83.70521893,168.34,168.33,0.06]
[1754522280401,78.73648978,168.34,168.33,0.06]
[1754522280598,16.58991542,168.34,168.33,0.71]
[1754522280802,48.50438561,168.34,168.33,0.71]
[1754522286721,48.50438561,168.34,168.33,0.06]
[1754522288894,3.99230621,168.34,168.33,0.71]
[1754522289090,41.12,168.34,168.33,0.71]
[1754522290297,45.09316747,168.34,168.33,0.71]
[1754522291506,41.12,168.34,168.33,0.71]
[1754522292522,45.09500474,168.34,168.33,0.71]
[1754522295925,41.12,168.34,168.33,0.71]